bitfinex-derivatives/quotes_ETHF0:USTF0_20260121
["timestamp","ask_amount","ask_price","bid_price","bid_amount"]
[1768984883384,0.14546208,2964.0,2962.5,1.09897339]
[1768984884902,0.14546208,2964.0,2962.5,0.00350633]
[1768984884903,0.14220833,2963.8,2962.5,0.00350633]
[1768984886106,0.14220833,2963.6,2962.5,0.00350633]
[1768984887594,0.14220833,2963.6,2962.5,1.09897339]
[1768984888400,0.14220833,2963.6,2962.5,0.00350633]
[1768984891006,0.14220833,2963.6,2962.7,1.09491944]
[1768984894296,0.16888,2963.7,2963.1,1.09491944]
[1768984894501,0.14546208,2964.0,2963.1,1.09491944]
[1768984897503,1.24038152,2964.0,2962.9,1.09491944]
[1768984898498,0.14220833,2963.4,2962.5,0.00350633]
[1768984900808,0.14220833,2963.4,2962.5,1.09842577]
[1768984901106,0.16889,2963.5,2962.8,1.09491944]
[1768984901304,0.31109833,2963.5,2962.5,0.00350633]
[1768984901504,0.14220833,2963.4,2962.5,0.00350633]
[1768984902798,0.14220833,2963.4,2961.8,0.84805696]
[1768984902799,0.14220833,2963.2,2962.0,1.09491944]
[1768984903606,0.91967293,2963.1,2962.0,1.09491944]
[1768984903808,0.14220833,2963.2,2962.0,1.09762453]
[1768984904012,0.91967841,2963.1,2962.2,1.09491944]
[1768984904310,0.14220833,2963.2,2962.2,1.09491944]
[1768984904502,0.91950278,2963.1,2962.2,1.09491944]
[1768984904701,0.14220833,2963.2,2962.2,1.09491944]
[1768984904902,0.9195028,2963.1,2962.2,1.09491944]
[1768984905202,0.1689,2963.4,2962.7,1.09491944]
[1768984905399,0.91938426,2963.3,2962.7,1.09491944]
[1768984905605,0.1689,2963.4,2962.5,1.09491944]
[1768984905805,0.91940278,2963.3,2962.3,1.09491944]
[1768984906005,0.14937476,2963.3,2962.3,1.09491944]
[1768984907106,0.14937476,2963.3,2962.5,1.09491944]
[1768984913618,0.1689,2963.4,2962.5,1.09491944]
[1768984913822,0.91874485,2963.3,2962.5,1.09491944]
[1768984914009,0.1689,2963.4,2962.5,1.09491944]
[1768984914209,0.91874185,2963.3,2962.5,1.09491944]
[1768984914422,0.91874185,2963.2,2962.5,1.09491944]
[1768984914621,0.1689,2963.4,2962.5,1.09491944]
[1768984914921,0.91889556,2963.3,2962.5,1.09491944]
[1768984915121,0.91889556,2963.2,2962.5,1.09491944]
[1768984915321,0.1689,2963.4,2962.5,1.09491944]
[1768984915620,0.91892961,2963.3,2962.5,1.09491944]
[1768984915815,0.91892961,2963.2,2962.5,1.09491944]
[1768984916008,1.09491944,2963.1,2962.0,0.00270509]
[1768984916211,1.2442942,2963.1,2962.0,0.00270509]
[1768984916412,1.2442942,2962.9,2962.0,0.00270509]
[1768984916612,1.09491944,2962.7,2962.0,0.00270509]
[1768984916807,1.09491944,2962.7,2961.8,0.00506696]
[1768984916808,0.14937476,2962.6,2961.8,0.00506696]
[1768984917519,0.16893,2962.8,2961.9,1.09491944]
[1768984917709,0.91818312,2962.7,2961.9,1.09491944]
[1768984918019,0.16893,2962.8,2961.9,0.00238929]
[1768984918219,2.16247528,2962.7,2961.5,1.09491944]
[1768984918525,1.06721868,2962.6,2961.3,1.09491944]
[1768984918713,0.14937476,2962.6,2961.3,1.09491944]
[1768984919211,0.14937476,2962.6,2961.3,1.09930832]
[1768984919412,0.00506696,2962.2,2961.7,0.00506696]
[1768984920420,0.00506696,2962.2,2961.7,1.0999864]
[1768984920722,0.00506696,2962.2,2961.7,0.00506696]
[1768984921922,0.00506696,2962.2,2961.7,1.0999864]
[1768984923021,0.16894,2962.7,2962.1,1.09491944]
[1768984923516,0.16894,2962.7,2961.7,1.0999864]
[1768984923824,0.16894,2962.7,2961.7,0.00506696]
[1768984924018,1.40828855,2962.7,2961.7,0.00506696]
[1768984931230,0.91915147,2962.6,2961.7,0.00506696]
[1768984931427,1.40828855,2962.7,2961.7,0.00506696]
[1768984931635,0.91915232,2962.6,2961.7,1.0999864]
[1768984931934,0.31336911,2962.7,2961.7,1.0999864]
[1768984932328,0.91891081,2962.6,2961.9,1.09491944]
[1768984932536,0.16894,2962.7,2961.9,1.09491944]
[1768984937241,0.91873388,2962.6,2961.9,1.09491944]
[1768984937444,0.16894,2962.7,2961.9,1.09491944]
[1768984937643,0.91873557,2962.6,2961.9,1.09491944]
[1768984937841,0.16894,2962.7,2961.9,1.09491944]
[1768984938041,0.91871359,2962.6,2961.9,1.09491944]
[1768984938243,0.16894,2962.7,2961.9,1.09491944]
[1768984938438,0.91881884,2962.6,2961.9,1.09491944]
[1768984938638,0.16894,2962.7,2961.9,1.09491944]
[1768984938840,0.91872327,2962.6,2961.9,1.09491944]
[1768984939043,0.16894,2962.7,2961.9,1.09491944]
[1768984939242,0.91875505,2962.6,2961.9,1.09491944]
[1768984939542,0.16894,2962.7,2961.9,1.09491944]
[1768984939743,0.91884976,2962.6,2961.9,1.09491944]
[1768984939945,0.16894,2962.7,2961.9,1.09491944]
[1768984940247,0.91884767,2962.6,2961.9,1.09491944]
[1768984940439,0.16894,2962.7,2961.9,1.09491944]
[1768984940642,0.91900026,2962.6,2961.9,1.09491944]
[1768984940842,0.16894,2962.7,2961.9,1.09491944]
[1768984941140,0.91900673,2962.6,2961.9,1.09491944]
[1768984941342,0.16894,2962.7,2961.9,1.09491944]
[1768984941645,0.91919097,2962.6,2961.9,1.09491944]
[1768984941847,0.16894,2962.7,2961.9,1.09491944]
[1768984942146,0.91917835,2962.6,2961.9,1.09491944]
[1768984942452,0.16894,2962.7,2961.9,1.09491944]
[1768984942749,0.91940055,2962.6,2961.9,1.09491944]
[1768984942951,0.16894,2962.7,2961.9,1.09491944]
[1768984943152,0.91940174,2962.6,2961.9,1.09491944]
[1768984943447,0.91940174,2962.5,2961.9,1.09491944]
[1768984943651,0.16894,2962.7,2961.9,1.09491944]
[1768984943852,0.9195978,2962.6,2961.9,1.09491944]
[1768984944146,0.91946157,2962.5,2961.9,1.09491944]
[1768984944350,0.16894,2962.7,2961.9,1.09491944]
[1768984944537,0.91964063,2962.6,2961.9,1.09491944]
[1768984944742,0.91964063,2962.5,2961.9,1.09491944]
[1768984944944,0.16894,2962.7,2961.9,1.09491944]
[1768984945143,0.91952693,2962.6,2961.9,1.09491944]
[1768984945343,0.91952693,2962.5,2961.9,1.09491944]
[1768984945650,0.16894,2962.7,2961.9,1.09491944]
[1768984945846,1.26448154,2962.6,2961.9,1.09491944]
[1768984946046,0.9200332,2962.5,2961.9,1.09491944]
[1768984946244,0.92082492,2962.4,2961.9,1.09491944]
[1768984946446,0.16894,2962.7,2961.9,1.09491944]
[1768984946646,1.2655548,2962.6,2961.9,1.09491944]
[1768984946850,1.2655548,2962.5,2961.9,1.09491944]
[1768984947040,0.92081578,2962.4,2961.9,1.09491944]
[1768984947245,0.16894,2962.7,2961.9,1.09491944]
[1768984947452,1.26557201,2962.6,2961.9,1.09491944]
[1768984947646,1.26557201,2962.5,2961.9,1.09491944]
[1768984947849,0.92082856,2962.4,2961.9,1.09491944]
[1768984948048,0.16894,2962.7,2961.9,1.09491944]
[1768984948245,1.26533824,2962.6,2961.9,1.09491944]
[1768984948446,1.26533824,2962.5,2961.9,1.09491944]
[1768984948752,0.92065918,2962.4,2961.9,1.09491944]
[1768984948954,0.16894,2962.7,2961.9,1.09491944]
[1768984949145,1.26503827,2962.6,2961.9,1.09491944]
[1768984949346,1.26503827,2962.5,2961.9,1.09491944]
[1768984949543,0.9204412,2962.4,2961.9,1.09491944]
[1768984949748,0.16894,2962.7,2961.9,1.09491944]
[1768984949950,1.26505454,2962.6,2961.9,1.09491944]
[1768984950151,1.26505454,2962.5,2961.9,1.09491944]
[1768984950454,0.92045348,2962.4,2961.9,1.09491944]
[1768984950754,0.16894,2962.7,2961.9,1.09491944]
[1768984950951,1.2677116,2962.6,2961.8,1.09556163]
[1768984951158,0.16891,2963.2,2962.1,1.24258006]
[1768984951358,0.16891,2963.2,2962.2,0.14701843]
[1768984952052,0.16891,2963.2,2961.8,1.24258006]
[1768984952458,0.16891,2963.2,2961.9,0.14701843]
[1768984956264,2.02246947,2963.5,2962.1,1.24258006]
[1768984957559,2.02246947,2963.5,2962.2,0.14701843]
[1768984957760,0.14546947,2963.5,2962.2,0.14701843]
[1768984958763,0.14546947,2963.5,2961.8,1.24258006]
[1768984959065,0.14546947,2963.4,2961.8,0.14701843]
[1768984959863,0.14546947,2963.4,2961.9,1.24258006]
[1768984962771,0.16889,2963.5,2962.0,0.14701843]
[1768984963168,0.91628255,2963.4,2962.0,0.14701843]
[1768984963370,0.91628255,2963.3,2962.0,0.14701843]
[1768984963571,0.31435947,2963.5,2962.0,0.14701843]
[1768984963769,0.91622693,2963.4,2962.0,0.14701843]
[1768984963968,0.91622693,2963.3,2962.0,0.14701843]
[1768984964168,0.31435947,2963.5,2962.0,0.14701843]
[1768984964367,0.91620831,2963.4,2962.0,0.14701843]
[1768984964570,0.91620831,2963.3,2962.0,0.14701843]
[1768984964764,0.31435947,2963.5,2962.0,0.14701843]
[1768984964966,0.91620387,2963.4,2962.0,0.14701843]
[1768984965166,0.91620387,2963.3,2962.0,0.14701843]
[1768984965364,0.31435947,2963.5,2962.0,0.14701843]
[1768984965567,0.91618003,2963.4,2962.0,0.14701843]
[1768984965865,0.31435947,2963.5,2962.0,0.14701843]
[1768984966062,0.91618118,2963.4,2962.0,0.14701843]
[1768984966262,0.16889,2963.5,2962.3,1.09556163]
[1768984966473,0.16889,2963.5,2962.0,0.14701843]
[1768984966668,0.14042894,2963.4,2962.0,0.14701843]
[1768984967172,0.14042894,2963.4,2962.0,0.94701843]
[1768984967572,0.14042894,2963.4,2962.0,0.14701843]
[1768984971468,0.16889,2963.5,2962.6,1.09556163]
[1768984971776,0.16889,2963.5,2962.3,1.23256296]
[1768984971981,0.16889,2963.5,2962.3,0.13700133]
[1768984972274,0.91634263,2963.4,2962.3,0.13700133]
[1768984972471,0.16889,2963.5,2962.3,0.13700133]
[1768984973075,0.91643086,2963.4,2962.3,0.13700133]
[1768984973269,0.16889,2963.5,2962.3,0.13700133]
[1768984973470,0.91642823,2963.4,2962.3,0.13700133]
[1768984973668,0.16889,2963.5,2962.3,0.13700133]
[1768984973871,0.9164293,2963.4,2962.3,0.13700133]
[1768984974075,0.16889,2963.5,2962.3,0.13700133]
[1768984974377,0.91655066,2963.4,2962.3,0.13700133]
[1768984974673,0.16889,2963.5,2962.3,0.13700133]
[1768984974876,0.91683376,2963.4,2962.3,0.13700133]
[1768984975071,0.16889,2963.5,2962.3,0.13700133]
[1768984975272,0.91699937,2963.4,2962.3,0.13700133]
[1768984975473,0.16889,2963.5,2962.3,0.13700133]
[1768984975678,0.91699725,2963.4,2962.3,0.13700133]
[1768984975878,0.16889,2963.5,2962.3,0.13700133]
[1768984976079,0.91699708,2963.4,2962.3,0.13700133]
[1768984976266,0.16889,2963.5,2962.3,0.13700133]
[1768984976471,0.91716178,2963.4,2962.3,0.13700133]
[1768984976670,0.16889,2963.5,2962.3,0.13700133]
[1768984976878,0.9171619,2963.4,2962.3,0.13700133]
[1768984977070,0.16889,2963.5,2962.3,0.13700133]
[1768984977271,0.91736873,2963.4,2962.3,0.13700133]
[1768984977568,0.14042894,2963.8,2962.3,0.13700133]
[1768984977772,0.91739416,2963.7,2962.3,0.13700133]
[1768984977974,0.14042894,2963.8,2962.3,0.13700133]
[1768984978174,1.26113508,2963.7,2962.3,0.13700133]
[1768984978376,0.14042894,2963.8,2962.3,0.13700133]
[1768984978582,0.91764832,2963.7,2962.3,0.13700133]
[1768984978873,0.14042894,2963.8,2962.3,0.13700133]
[1768984979078,0.91764746,2963.7,2962.3,0.13700133]
[1768984979269,0.91764746,2963.6,2962.3,0.13700133]
[1768984979473,0.14042894,2963.7,2962.3,0.13700133]
[1768984979672,0.91782569,2963.6,2962.3,0.13700133]
[1768984979973,0.14042894,2963.7,2962.3,0.13700133]
[1768984980279,1.2615589,2963.6,2962.3,0.13700133]
[1768984980482,0.91820072,2963.5,2962.2,1.09556163]
[1768984980677,0.14042894,2963.6,2962.2,1.09556163]
[1768984980876,0.14042894,2963.6,2961.9,3.98598783]
[1768984980877,0.30932894,2963.4,2961.9,4.91256946]
[1768984981078,1.40258556,2963.3,2961.9,1.90656296]
[1768984981277,0.14033152,2963.1,2961.9,0.674]
[1768984982571,0.14033152,2962.9,2961.9,0.674]
[1768984982773,0.14033152,2962.9,2961.7,0.00506696]
[1768984988778,0.14033152,2962.8,2961.7,0.00506696]
[1768984989581,0.30926152,2962.8,2961.7,0.00506696]
[1768984989789,0.14033152,2962.6,2961.7,0.00506696]
[1768984993680,0.14033152,2962.6,2960.9,2.04604]
[1768984993681,0.14033152,2962.6,2960.0,6.012013]
[1768984993884,1.09556163,2961.4,2959.5,0.14575598]
[1768984994085,1.26286193,2961.3,2959.5,0.14575598]
[1768984994284,1.09556163,2961.0,2959.5,0.14575598]
[1768984994492,1.13304785,2960.9,2959.1,0.14575598]
[1768984994676,0.96400785,2960.8,2959.1,0.14575598]
[1768984994879,0.17159479,2960.9,2959.7,0.00506696]
[1768984995076,0.00506696,2960.2,2959.7,0.00506696]
[1768984996386,0.00255479,2960.9,2959.7,0.1451568]
[1768984997282,1.64614764,2960.3,2959.1,0.00344739]
[1768984997486,0.1691,2959.9,2958.1,0.14008984]
[1768984997878,0.1691,2959.8,2958.1,0.14008984]
[1768984998483,0.1691,2959.8,2958.7,0.00506696]
[1768985001990,0.16906,2960.5,2958.7,0.1451568]
[1768985002681,0.16907,2960.4,2958.7,0.1451568]
[1768985003288,0.16908,2960.2,2958.7,0.00506696]
[1768985003494,1.878,2960.7,2958.7,0.00506696]
[1768985004286,1.879,2960.6,2958.7,0.00506696]
[1768985004490,0.00506696,2959.9,2958.7,0.00506696]
[1768985006391,0.00506696,2959.9,2958.7,0.1451568]
[1768985008893,0.16908,2960.3,2958.7,0.1451568]
[1768985009203,0.17159479,2960.9,2958.8,0.14008984]
[1768985009492,0.17159479,2960.9,2959.0,0.14008984]
[1768985009698,0.16905,2960.8,2959.0,0.14008984]
[1768985013495,0.16905,2960.8,2959.0,0.81408984]
[1768985013696,0.16905,2960.8,2959.1,0.14008984]
[1768985013997,0.16905,2960.8,2959.2,0.14008984]
[1768985014903,0.16905,2960.8,2959.3,0.14008984]
[1768985017903,0.00255479,2960.9,2959.4,0.14008984]
[1768985018109,0.00255479,2960.9,2959.5,0.14008984]
[1768985018710,0.00255479,2960.9,2959.7,0.14008984]
[1768985020410,0.00678615,2960.8,2958.8,0.14008984]
[1768985020616,0.16907,2960.4,2958.8,0.14008984]
[1768985020818,0.17585615,2960.4,2958.8,0.14008984]
[1768985021215,0.95913083,2960.3,2958.8,0.14008984]
[1768985021416,0.17585615,2960.4,2958.8,0.14008984]
[1768985021719,0.95912923,2960.3,2958.8,0.14008984]
[1768985021918,0.17585615,2960.4,2958.8,0.14008984]
[1768985022118,0.95912927,2960.3,2958.8,0.14008984]
[1768985022318,0.95912927,2960.2,2958.8,0.14008984]
[1768985022519,0.16907,2960.4,2958.8,0.14008984]
[1768985022717,0.00255479,2960.9,2958.9,0.14008984]
[1768985023021,0.96038135,2960.8,2958.9,0.14008984]
[1768985023217,0.16906,2960.5,2958.9,0.14008984]
[1768985023414,0.96038135,2960.4,2958.9,0.14008984]
[1768985024819,0.96038135,2960.4,2958.7,0.00506696]
[1768985025021,1.9675578,2959.7,2958.7,0.00506696]
[1768985025219,0.96038135,2959.6,2958.7,0.00506696]
[1768985025423,0.96038135,2959.5,2958.7,0.00506696]
[1768985025618,0.96038135,2959.4,2958.7,0.00506696]
[1768985025820,0.95751684,2959.3,2958.7,0.00506696]
[1768985026025,0.16911,2959.7,2958.7,0.00506696]
[1768985026325,0.95736819,2959.6,2958.7,0.00506696]
[1768985026621,0.95736819,2959.5,2958.7,0.00506696]
[1768985026822,0.95736819,2959.4,2958.7,0.00506696]
[1768985027018,0.16911,2959.7,2958.7,0.00506696]
[1768985027218,0.95735547,2959.6,2958.7,0.00506696]
[1768985027416,0.95735547,2959.5,2958.7,0.00506696]
[1768985027622,0.95735547,2959.4,2958.7,0.00506696]
[1768985027818,0.16911,2959.7,2958.7,0.00506696]
[1768985028020,0.95735766,2959.6,2958.7,0.00506696]
[1768985028323,0.95735766,2959.5,2958.7,0.00506696]
[1768985028521,0.95735766,2959.4,2958.7,0.00506696]
[1768985028723,0.16911,2959.7,2958.7,0.00506696]
[1768985028922,0.95722778,2959.6,2958.7,0.00506696]
[1768985029112,0.95722778,2959.5,2958.7,0.00506696]
[1768985029320,0.95722778,2959.4,2958.7,0.1447732]
[1768985029513,0.16911,2959.7,2958.7,0.1447732]
[1768985029724,0.95734589,2959.6,2958.7,0.1447732]
[1768985029918,0.95734589,2959.5,2958.7,0.1447732]
[1768985030125,0.95737006,2959.4,2958.7,0.1447732]
[1768985030332,0.16911,2959.7,2958.7,0.1447732]
[1768985030624,0.95737021,2959.6,2958.7,0.1447732]
[1768985030812,0.95737021,2959.5,2958.7,0.1447732]
[1768985031012,0.95737021,2959.4,2958.7,0.1447732]
[1768985031217,0.16911,2959.7,2958.7,0.1447732]
[1768985031416,0.95745678,2959.6,2958.7,0.1447732]
[1768985031621,0.95745678,2959.5,2958.7,0.1447732]
[1768985031819,0.16911,2959.7,2958.7,0.1447732]
[1768985032020,0.95742442,2959.6,2958.7,0.1447732]
[1768985032220,0.95742442,2959.5,2958.7,0.1447732]
[1768985032421,0.16911,2959.7,2958.7,0.1447732]
[1768985032622,0.95735236,2959.6,2958.7,0.1447732]
[1768985032824,0.95735236,2959.5,2958.7,0.1447732]
[1768985033020,0.16911,2959.7,2958.7,0.1447732]
[1768985033221,0.95727371,2959.6,2958.7,0.1447732]
[1768985033427,0.95727371,2959.5,2958.7,0.1447732]
[1768985033628,0.16911,2959.7,2958.7,0.1447732]
[1768985033830,0.95727775,2959.6,2958.7,0.1447732]
[1768985034032,0.95727775,2959.5,2958.7,0.1447732]
[1768985034234,0.16911,2959.7,2958.7,0.1447732]
[1768985034530,0.95722917,2959.6,2958.7,0.1447732]
[1768985034732,0.95722917,2959.5,2958.7,0.1447732]
[1768985034929,0.16911,2959.7,2958.7,0.1447732]
[1768985035130,0.95722304,2959.6,2958.7,0.1447732]
[1768985035331,0.95722304,2959.5,2958.7,0.1447732]
[1768985035528,0.16911,2959.7,2958.7,0.1447732]
[1768985035725,0.95716396,2959.6,2958.7,0.1447732]
[1768985035930,3.6774478,2960.2,2958.7,0.1447732]
[1768985036127,0.95723643,2960.1,2958.7,0.1447732]
[1768985036327,0.95723643,2960.0,2958.7,0.1447732]
[1768985036630,0.95723643,2959.9,2958.7,0.00506696]
[1768985036831,0.95723643,2959.8,2958.7,0.00506696]
[1768985037031,0.95723643,2959.7,2958.7,0.00506696]
[1768985037233,3.6774478,2960.2,2958.7,0.00506696]
[1768985037432,0.95712019,2960.1,2958.7,0.00506696]
[1768985037630,1.12621019,2960.0,2958.7,0.00506696]
[1768985037932,0.95712019,2959.9,2958.7,0.00506696]
[1768985038133,0.95712019,2959.8,2958.7,0.00506696]
[1768985038329,0.95712019,2959.7,2958.7,0.00506696]
[1768985038531,0.16909,2960.0,2958.7,0.00506696]
[1768985038732,0.95703324,2959.9,2958.7,0.00506696]
[1768985038930,1.09797428,2959.7,2958.7,0.00506696]
[1768985040833,1.09797428,2959.9,2958.8,0.13970624]
[1768985041040,0.95682024,2959.8,2958.8,0.13970624]
[1768985041236,1.09797428,2959.9,2958.8,0.13970624]
[1768985041438,0.95686761,2959.8,2958.8,0.13970624]
[1768985041740,1.09797428,2959.9,2958.8,0.13970624]
[1768985041939,0.95686363,2959.8,2958.8,0.13970624]
[1768985042136,1.09797428,2959.9,2958.8,0.13970624]
[1768985042337,0.95692086,2959.8,2958.8,0.13970624]
[1768985042536,1.09797428,2959.7,2958.7,0.00506696]
[1768985042732,1.09797428,2959.7,2958.7,1.10304124]
[1768985043641,1.09797428,2959.9,2958.7,1.10304124]
[1768985043938,0.95697595,2959.8,2958.7,1.24038315]
[1768985044241,1.09797428,2959.9,2958.7,1.24038315]
[1768985044427,0.95712043,2959.8,2958.7,1.24038315]
[1768985044632,1.09797428,2959.9,2958.7,1.24038315]
[1768985044940,0.95711622,2959.8,2958.7,0.14240887]
[1768985045134,0.16909,2960.0,2958.7,0.14240887]
[1768985045333,1.64661906,2959.1,2957.3,0.13734191]
[1768985045539,0.16915,2958.9,2957.3,0.13734191]
[1768985046442,0.16915,2958.9,2957.8,0.00506696]
[1768985048636,1.879,2959.4,2957.8,0.14240887]
[1768985048943,0.95700286,2959.3,2957.8,0.14240887]
[1768985049239,0.95760625,2959.2,2957.8,0.14240887]
[1768985049444,1.879,2959.4,2957.8,0.14240887]
[1768985049641,0.95758014,2959.3,2957.8,0.14240887]
[1768985049838,0.95758014,2959.2,2957.8,0.14240887]
[1768985050038,1.879,2959.4,2957.8,0.14240887]
[1768985050239,0.95836484,2959.3,2957.8,0.14240887]
[1768985050441,0.95836484,2959.2,2957.8,0.14240887]
[1768985050745,1.879,2959.4,2957.8,0.14240887]
[1768985050947,0.95857935,2959.3,2957.8,0.14240887]
[1768985051138,0.95857935,2959.2,2957.8,0.14240887]
[1768985051338,1.879,2959.4,2957.8,0.14240887]
[1768985051633,0.95868676,2959.3,2957.8,0.14240887]
[1768985051839,0.95868676,2959.2,2957.8,0.14240887]
[1768985052038,0.00506696,2958.8,2957.8,0.14240887]
[1768985052239,0.0081224,2958.8,2957.8,0.14240887]
[1768985056541,1.88,2960.2,2958.0,0.1451919]
[1768985056542,1.7984478,2960.1,2958.0,0.1451919]
[1768985056747,0.1691,2959.9,2958.0,0.1451919]
[1768985056949,0.95979679,2959.8,2958.1,0.1451919]
[1768985057351,0.95977775,2959.7,2958.1,0.1451919]
[1768985057650,0.95977775,2959.6,2958.1,0.1451919]
[1768985057849,0.00337835,2959.8,2958.1,0.1451919]
[1768985058054,0.95977831,2959.7,2958.1,0.1451919]
[1768985058254,0.95977831,2959.6,2958.1,0.1451919]
[1768985058456,0.00337835,2959.8,2958.1,0.1451919]
[1768985058656,0.9597926,2959.7,2958.1,0.1451919]
[1768985058962,0.00337835,2959.8,2958.1,0.1451919]
[1768985059157,0.95981659,2959.7,2958.1,0.1451919]
[1768985059349,0.00337835,2959.8,2958.1,0.1451919]
[1768985059657,0.95977872,2959.7,2958.1,0.1451919]
[1768985059856,0.00337835,2959.8,2958.1,1.79181096]
[1768985060055,0.00337835,2959.8,2958.2,0.3143819]
[1768985060258,0.00337835,2959.8,2958.3,0.1451919]
[1768985060956,0.00337835,2959.8,2958.4,0.3143719]
[1768985061149,0.00337835,2959.8,2958.5,0.1451919]
[1768985062657,0.00337835,2959.8,2958.5,1.79181096]
[1768985062852,0.00337835,2959.8,2958.6,0.1451919]
[1768985066854,0.00337835,2959.8,2958.6,4.2451919]
[1768985067266,0.00337835,2959.8,2958.7,0.1451919]
[1768985070156,0.00337835,2959.8,2958.7,2.0241919]
[1768985070460,0.00337835,2959.8,2958.8,0.1451919]
[1768985088374,1.7984478,2960.6,2958.8,0.1451919]
[1768985088575,1.30124694,2960.5,2958.9,0.13708062]
[1768985088777,0.95773197,2960.4,2959.5,0.13708062]
[1768985088978,0.95773197,2960.3,2959.5,0.13708062]
[1768985089279,0.16905,2960.8,2959.5,0.13708062]
[1768985089481,1.30135145,2960.7,2959.5,0.14085625]
[1768985089780,0.00260511,2960.8,2959.5,0.14085625]
[1768985094883,0.00260511,2960.8,2959.5,1.23778314]
[1768985095184,0.00260511,2960.8,2959.6,0.13708062]
[1768985103786,0.95488955,2960.7,2959.6,0.13708062]
[1768985103985,0.17165511,2960.8,2959.6,0.13708062]
[1768985104186,0.95473518,2960.7,2959.6,0.13708062]
[1768985104382,0.17165511,2960.8,2959.6,0.13708062]
[1768985104581,0.95479192,2960.7,2959.6,0.13708062]
[1768985104790,0.17165511,2960.8,2959.6,0.13708062]
[1768985104984,0.95479622,2960.7,2959.6,0.13708062]
[1768985105187,0.17165511,2960.8,2959.6,0.13708062]
[1768985105490,1.1238946,2960.7,2959.6,0.13708062]
[1768985105691,0.16905,2960.7,2959.6,0.13708062]
[1768985110196,0.95526927,2960.6,2959.6,0.13708062]
[1768985110494,0.16905,2960.7,2959.6,0.13708062]
[1768985110694,0.95526873,2960.6,2959.6,0.13708062]
[1768985110894,0.16905,2960.7,2959.6,0.13708062]
[1768985111097,0.95527192,2960.6,2959.6,0.13708062]
[1768985111390,0.16905,2960.7,2959.6,0.13708062]
[1768985111597,0.95543048,2960.6,2959.6,0.13708062]
[1768985111789,0.16905,2960.7,2959.6,0.13708062]
[1768985112095,0.95581235,2960.6,2959.6,0.13708062]
[1768985112291,0.16905,2960.7,2959.6,0.13708062]
[1768985112595,0.95606954,2960.6,2959.6,0.13708062]
[1768985112794,0.16905,2960.7,2959.6,0.13708062]
[1768985112996,0.95608021,2960.6,2959.6,0.13708062]
[1768985113298,0.16905,2960.7,2959.6,0.13708062]
[1768985113497,0.95632077,2960.6,2959.6,0.13708062]
[1768985113692,0.16905,2960.7,2959.6,0.13708062]
[1768985113996,0.95635466,2960.6,2959.6,0.13708062]
[1768985114196,0.16905,2960.7,2959.6,0.13708062]
[1768985114390,0.95657711,2960.6,2959.6,0.13708062]
[1768985114597,0.16905,2960.7,2959.6,0.13708062]
[1768985114795,0.95657621,2960.6,2959.6,0.13708062]
[1768985114997,0.16905,2960.7,2959.6,0.13708062]
[1768985115199,0.95658421,2960.6,2959.6,0.13708062]
[1768985115392,0.16905,2960.7,2959.6,0.13708062]
[1768985115590,0.9561816,2960.6,2959.6,0.13708062]
[1768985115790,0.16905,2960.7,2959.6,0.13708062]
[1768985115992,0.95627348,2960.6,2959.6,0.13708062]
[1768985116192,0.16905,2960.7,2959.6,0.13708062]
[1768985116404,0.95401169,2960.6,2959.6,0.13708062]
[1768985116593,0.16905,2960.7,2959.6,0.13708062]
[1768985116801,0.95400927,2960.6,2959.6,0.13708062]
[1768985117103,0.16905,2960.7,2959.6,0.13708062]
[1768985117304,0.95425208,2960.6,2959.6,0.13708062]
[1768985117498,0.16905,2960.7,2959.6,0.13708062]
[1768985117699,0.95316336,2960.6,2959.6,0.13708062]
[1768985117901,0.16905,2960.7,2959.6,0.13708062]
[1768985118100,0.95316642,2960.6,2959.6,0.13708062]
[1768985118399,0.16905,2960.7,2959.6,0.13708062]
[1768985118698,0.95345201,2960.6,2959.6,0.13708062]
[1768985118900,0.16905,2960.7,2959.6,0.13708062]
[1768985119102,0.9534495,2960.6,2959.6,0.13708062]
[1768985119406,0.16905,2960.7,2959.6,0.13708062]
[1768985119706,0.95351476,2960.6,2959.6,0.13708062]
[1768985119902,0.16905,2960.7,2959.6,0.13708062]
[1768985120102,0.95352537,2960.6,2959.6,0.13708062]
[1768985120303,0.16905,2960.7,2959.6,0.13708062]
[1768985120505,0.95360044,2960.6,2959.6,0.13708062]
[1768985120805,0.16905,2960.7,2959.6,0.13708062]
[1768985121000,0.95360373,2960.6,2959.6,0.13708062]
[1768985121209,0.00260511,2960.8,2959.6,0.13708062]
[1768985121500,0.95385934,2960.7,2959.6,0.13708062]
[1768985121699,0.95385934,2960.6,2959.6,0.13708062]
[1768985121898,0.00260511,2960.8,2959.6,0.13708062]
[1768985122110,1.7984478,2961.5,2959.6,0.13708062]
[1768985122409,0.95392816,2961.4,2959.8,0.13974378]
[1768985122708,0.95392816,2961.3,2959.8,0.13974378]
[1768985122906,0.95392816,2961.2,2959.8,0.13974378]
[1768985123208,0.00351165,2961.2,2959.8,0.13974378]
[1768985123702,0.95338675,2961.1,2959.8,0.13974378]
[1768985123901,0.00351165,2961.2,2959.8,0.13974378]
[1768985124101,0.95342494,2961.1,2959.8,0.13974378]
[1768985124316,0.95342494,2961.0,2959.8,0.13974378]
[1768985124608,0.00351165,2961.2,2959.8,0.13974378]
[1768985124809,0.95328708,2961.1,2959.8,0.13974378]
[1768985125108,0.95328708,2961.0,2959.8,0.13974378]
[1768985125301,0.16904,2960.9,2959.8,0.13974378]
[1768985125608,0.95316094,2960.8,2959.8,0.13974378]
[1768985125808,0.95316094,2960.7,2959.8,0.13974378]
[1768985126107,0.16904,2960.9,2959.8,0.13974378]
[1768985126308,0.95311582,2960.8,2959.8,0.13974378]
[1768985126612,0.95311582,2960.7,2959.8,0.13974378]
[1768985126913,0.16904,2960.9,2959.8,0.13974378]
[1768985127103,0.95311818,2960.8,2959.8,0.13974378]
[1768985127305,0.95311818,2960.7,2959.8,0.13974378]
[1768985127504,0.16904,2960.9,2959.8,0.13974378]
[1768985127707,0.95313287,2960.8,2959.8,0.13974378]
[1768985128013,0.95313287,2960.7,2959.8,0.13974378]
[1768985128314,0.16904,2960.9,2959.8,0.13974378]
[1768985128505,0.95312982,2960.8,2959.8,0.13974378]
[1768985128804,0.16904,2960.9,2959.8,0.13974378]
[1768985129004,0.95310642,2960.8,2959.8,0.13974378]
[1768985129206,0.16904,2960.9,2959.8,0.13974378]
[1768985129517,0.95309632,2960.8,2959.8,0.13974378]
[1768985129811,0.95309632,2960.7,2959.8,0.13974378]
[1768985130013,0.16904,2960.9,2959.8,0.13974378]
[1768985130215,0.95310739,2960.8,2959.8,0.13974378]
[1768985130513,0.95310739,2960.7,2959.8,0.13974378]
[1768985130711,0.16904,2960.9,2959.8,0.13974378]
[1768985130915,0.95242051,2960.8,2959.8,0.13974378]
[1768985131211,0.95242051,2960.7,2959.8,0.13974378]
[1768985131402,0.16904,2960.9,2959.8,0.13974378]
[1768985131606,0.95243766,2960.8,2959.8,0.13974378]